fUSD/lending_fUSD_20250327
["ID","MTS","AMOUNT","RATE_DAILY","PERIOD"]
[356732995,1743066640040,-999.99918018,0.00015,2]
[356732996,1743066640052,-748.0324091,0.00015,2]
[356732997,1743066640063,-1399.79399091,0.00015,2]
[356733000,1743066640193,-3528.63386086,0.00015,2]
[356733001,1743066640282,-250.00582104,0.00015,2]
[356733002,1743066640798,-250.00582104,0.00015,2]
[356733003,1743066642672,-284.74638608,0.00015,2]
[356733004,1743066642684,-835.04991627,0.00015,2]
[356733005,1743066642778,-2305.68935329,0.00015,2]
[356733006,1743066642790,-562.94029799,0.00015,2]
[356733007,1743066642802,-282.22400001,0.00015,2]
[356733008,1743066642813,-386.4901369,0.00015,2]
[356733009,1743066642824,-392.53922624,0.00015,2]
[356733010,1743066642836,-624.711,0.00015,2]
[356733011,1743066642857,-1086.48280957,0.00015,2]
[356733012,1743066642869,-447.27153168,0.00015,2]
[356733100,1743066643827,-1635.41090626,0.00015,2]
[356733102,1743066643838,-42556.29952514,0.00015,2]
[356733105,1743066643853,-800.87673026,0.00015,2]
[356733107,1743066643864,-512.6900035,0.00015,2]
[356733109,1743066643875,-4785.95896218,0.00015,2]
[356733123,1743066643997,-151.24,0.00015,2]
[356733294,1743066645563,-343.53915486,0.00015,2]
[356733316,1743066645671,-339.90938436,0.00015,2]
[356733319,1743066645684,-668.30843146,0.00015,2]
[356733339,1743066645780,-303.12976485,0.00015,2]
[356733343,1743066645792,-846.76102732,0.00015,2]
[356733346,1743066645805,-658.63300375,0.00015,2]
[356733353,1743066645834,-432.19494406,0.00015,2]
[356733356,1743066645846,-295.38055668,0.00015,2]
[356733361,1743066645858,-1271.57786112,0.00015,2]
[356733371,1743066645944,-4388.83591928,0.00015,2]
[356733544,1743066663519,-150.7605137,0.0001455,2]
[356733545,1743066663542,-7.48383916,0.00014999,2]
[356733546,1743066664578,-150.7605137,0.00014999,2]
[356733547,1743066698733,-253.59912675,0.00014924,2]
[356733548,1743066717405,-152.91151117,0.00014568,2]
[356733549,1743066717429,-56.42118883,0.00014732,2]
[356733550,1743066722804,-93.57881117,0.00014732,2]
[356733551,1743066722827,-198.46126082,0.00014741,2]
[356733552,1743066781629,-216.07485828,0.00013938,2]
[356733553,1743066792612,-179.87709353,0.00012008,2]
[356733554,1743066805906,-152.91151117,0.00012008,2]
[356733555,1743066816880,-202.43854032,0.00012008,2]
[356733556,1743066861522,-152.91151117,0.00012008,2]
[356733557,1743066893280,-152.91151117,0.00012008,2]
[356733558,1743066925294,-150.0,0.00012008,2]
[356733560,1743066972429,-221.35983264,0.00012008,2]
[356733561,1743066972452,-28.84646736,0.00013885,2]
[356733562,1743067002641,-150.0,0.00013885,2]
[356733563,1743067004861,-1491.49,0.00013885,2]
[356733564,1743067015188,-153.95816816,0.00013815,2]
[356733565,1743067023373,-64.87404684,0.00013815,2]
[356733566,1743067023397,-85.12595316,0.00013884,2]
[356733567,1743067029985,150.01,0.00011108,2]
[356733568,1743067043077,-187.40607384,0.00013884,2]
[356733569,1743067082018,-168.48,0.00013884,2]
[356733570,1743067096645,-168.48,0.00013814,2]
[356733571,1743067096669,-103.7131,0.00013876,2]
[356733572,1743067174552,-188.0768862,0.00013876,2]
[356733573,1743067203301,-150.0,0.00013876,2]
[356733574,1743067236239,-150.01612523,0.00013876,2]
[356733575,1743067242855,-181.09745514,0.00013876,2]
[356733576,1743067258409,-150.0,0.00013876,2]
[356733577,1743067289773,-154.0005802,0.00013866,2]
[356733578,1743067301354,-174.70485692,0.0001385,2]
[356733579,1743067383384,-157.907721,0.0001385,2]
[356733580,1743067388661,-150.0,0.0001385,2]
[356733581,1743067415141,1000.0,0.00024799,120]
[356733582,1743067442699,-150.0,0.0001378,2]
[356733583,1743067442722,-126.3349,0.0001385,2]
[356733584,1743067507847,-154.000581,0.00013747,2]
[356733585,1743067554191,-182.8084621,0.00013706,2]
[356733586,1743067563398,158.88169,0.00015,13]
[356733587,1743067564216,-182.808463,0.00013706,2]
[356733589,1743067571863,-150.0,0.00013687,2]
[356733590,1743067587037,-152.6363921,0.00013669,2]
[356733591,1743067607732,-167.73673983,0.000136,2]
[356733592,1743067616782,-262.0305563,0.000136,2]
[356733593,1743067652828,-88.48602087,0.000136,2]
[356733594,1743067652855,-95.22719113,0.00013628,2]
[356733595,1743067682879,-200.0,0.00013559,2]
[356733596,1743067693639,1153.22571111,9e-05,2]
[356733598,1743067717562,-150.0,0.00013559,2]
[356733601,1743067739243,-79.767297,0.00013559,2]
[356733602,1743067739269,-97.0959491,0.00013628,2]
[356733603,1743067757649,-230.53094839,0.00013559,2]
[356733608,1743067773724,-151.28,0.00013543,2]
[356733612,1743067802018,-2.67816816,0.00013543,2]
[356733613,1743067802040,-119.46905161,0.00013559,2]
[356733614,1743067802064,-50.99278023,0.00013628,2]
[356733617,1743067831724,-150.0,0.00013551,2]
[356733619,1743067831734,-180.62,0.00013622,2]
[356733621,1743067831744,-51.91127067,0.00013628,2]
[356733623,1743067831754,-160.99280887,0.00013628,2]
[356733625,1743067831763,-114.72592046,0.00013634,2]
[356733626,1743067831786,-708.84060142,0.00013634,2]
[356733627,1743067831838,-434.075,0.00013634,2]
[356733628,1743067831895,-683.49722001,0.00013634,2]
[356733629,1743067831908,-826.56125811,0.00013634,2]
[356733630,1743067831919,-221.55,0.00013643,2]
[356733631,1743067831928,-847.3636079,0.00013669,2]
[356733632,1743067831938,-24.7,0.00013687,2]
[356733633,1743067831948,-2154.5230749,0.00013706,2]
[356733634,1743067831959,-507.539419,0.00013747,2]
[356733635,1743067831968,-1701.54,0.00013769,2]
[356733636,1743067831977,-150.0,0.00013792,7]
[356733637,1743067831987,-94.30252208,0.0001385,2]
[356733638,1743067831998,-689.8994198,0.00013866,2]
[356733639,1743067832007,-3160.78643343,0.00013876,2]
[356733640,1743067832017,-292.04,0.00013876,2]
[356733641,1743067832026,-150.0,0.00013884,2]
[356733642,1743067832035,-22229.66353264,0.00013885,2]
[356733643,1743067832044,-310.53,0.00013885,2]
[356733644,1743067832053,-1641.49,0.00013885,2]
[356733645,1743067832062,-250.0,0.00013895,2]
[356733646,1743067832071,-200.0,0.00013896,2]
[356733647,1743067832080,-300.0,0.00013914,2]
[356733648,1743067832090,-33.93514172,0.00013938,2]
[356733649,1743067832099,-268.88,0.00014019,2]
[356733650,1743067832108,-1212.41,0.00014272,2]
[356733651,1743067832118,-150.99,0.00014504,2]
[356733652,1743067832127,-539.75,0.00014504,2]
[356733653,1743067832137,-216.07485828,0.00014544,2]
[356733654,1743067832147,-500.0,0.000147,5]
[356733655,1743067832156,-150.0,0.00014723,2]
[356733656,1743067832166,-150.0,0.0001473,2]
[356733657,1743067832175,-150.0,0.00014737,2]
[356733659,1743067832184,-30.81883253,0.00014741,2]
[356733661,1743067832193,-150.0,0.0001475,2]
[356733663,1743067832203,-150.0,0.00014759,2]
[356733664,1743067832212,-150.0,0.00014759,2]
[356733665,1743067832221,-150.0,0.0001477,2]
[356733666,1743067832230,-150.0,0.00014778,2]
[356733668,1743067832239,-150.0,0.00014783,2]
[356733670,1743067832248,-1000.0,0.000148,5]
[356733672,1743067832258,-150.0,0.00014804,2]
[356733674,1743067832267,-150.0,0.00014808,2]
[356733676,1743067832276,-150.0,0.00014816,2]
[356733678,1743067832285,-150.0,0.00014828,2]
[356733680,1743067832295,-150.0,0.00014828,2]
[356733682,1743067832304,-150.0,0.0001484,2]
[356733684,1743067832313,-150.0,0.00014848,2]
[356733686,1743067832323,-185.0,0.00014849,2]
[356733688,1743067832332,-150.0,0.00014851,2]
[356733690,1743067832341,-150.0,0.00014867,2]
[356733692,1743067832350,-150.0,0.00014867,2]
[356733694,1743067832360,-150.0,0.00014879,2]
[356733696,1743067832369,-150.0,0.00014879,2]
[356733698,1743067832378,-150.0,0.00014886,2]
[356733700,1743067832387,-152.35752396,0.00014888,2]
[356733702,1743067832396,-150.0,0.00014888,2]
[356733704,1743067832406,-150.0,0.00014896,2]
[356733706,1743067832415,-150.0,0.00014897,2]
[356733708,1743067832424,-456.2,0.000149,2]
[356733710,1743067832434,-804.13,0.000149,2]
[356733712,1743067832443,-762.202,0.000149,2]
[356733714,1743067832452,-166.8070957,0.000149,2]
[356733716,1743067832461,-1500.0,0.000149,5]
[356733718,1743067832471,-411.82229734,0.000149,2]
[356733720,1743067832479,-5944.34858485,0.000149,2]
[356733722,1743067832488,-150.0,0.00014925,2]
[356733724,1743067832497,-150.0,0.00014928,2]
[356733726,1743067832506,-150.0,0.00014939,2]
[356733728,1743067832515,-150.0,0.00014947,2]
[356733730,1743067832524,-156.28715357,0.00014951,2]
[356733731,1743067832534,-150.0,0.00014954,2]
[356733733,1743067832543,-150.0,0.00014961,2]
[356733735,1743067832552,-150.0,0.00014968,2]
[356733737,1743067832561,-500.0,0.00014973,2]
[356733739,1743067832570,-150.0,0.00014975,2]
[356733741,1743067832579,-150.0,0.00014991,2]
[356733743,1743067832588,-2623.1751095,0.00014998,2]
[356733745,1743067832598,-1015.3704867,0.00014998,2]
[356733747,1743067832607,-181.04702014,0.00014999,2]
[356733749,1743067832616,-150.0,0.00014999,2]
[356733751,1743067832625,-150.0,0.00014999,2]
[356733753,1743067832634,-150.0,0.00014999,2]
[356733755,1743067832643,-150.0,0.00014999,2]
[356733757,1743067832653,-150.0,0.00014999,2]
[356733759,1743067832662,-87.037356,0.00014999,2]
[356733760,1743067832675,-62.962644,0.00014999,2]
[356733762,1743067832684,-507.127356,0.00015,2]
[356733764,1743067832695,-1495.88546281,0.00015,2]
[356733765,1743067832707,-504.75,0.00015,2]
[356733766,1743067837690,-557.97151476,0.00015,2]
[356733767,1743067837702,-6341.06870671,0.00015,2]
[356733768,1743067837713,-437.70943335,0.00015,2]
[356733769,1743067837747,-43844.28043035,0.00015,2]
[356733770,1743067837758,-2631.65997,0.00015,2]
[356733771,1743067837769,-3248.48176361,0.00015,2]
[356733772,1743067837810,-19965.38000002,0.00015,2]
[356733773,1743067837821,-1485.86954185,0.00015,2]
[356733774,1743067837922,-376.0213201,0.00015,2]
[356733791,1743067840028,-425371.20152802,0.00015,2]
[356733793,1743067840038,-120481.97009609,0.00015,2]
[356733813,1743067842215,-150.0,0.00015,2]
[356733889,1743067844054,-439.6789258,0.00015,2]
[356734031,1743067847170,-150.0,0.00015,2]
[356734032,1743067850769,-150.0,0.000149,2]
[356734033,1743067863672,-86.33008402,0.000149,2]
[356734034,1743067863700,-64.94991598,0.00015,2]
[356734035,1743067868771,158.8817,0.0001735,18]
[356734036,1743067868842,158.8817,0.0001985,23]
[356734037,1743067869867,-150.0,0.00015,2]
[356734038,1743067880066,-186.03,0.00015,2]
[356734039,1743067891328,-161.44191272,0.000149,2]
[356734040,1743067903983,-113.10628552,0.000149,2]
[356734041,1743067904008,-36.89371448,0.00015,2]
[356734042,1743067924096,-153.0,0.00015,2]
[356734043,1743067927725,-369.88,0.00015,2]
[356734044,1743067929440,-1028.9142,0.00015,2]
[356734045,1743067939456,-151.0,0.00015,2]
[356734046,1743067946637,-150.0,0.00015,2]
[356734047,1743067951038,-171.59652938,0.000149,2]
[356734048,1743067973768,-150.75689234,0.000149,2]
[356734049,1743067987988,2632.959151,7.945e-05,2]
[356734050,1743068041886,-166.8070957,0.000149,2]
[356734051,1743068041916,-77.04749992,0.000149,2]
[356734052,1743068044546,-80.50588942,0.000149,2]
[356734053,1743068044568,-72.49411058,0.000149,2]
[356734054,1743068047606,469.124658,7.945e-05,2]
[356734055,1743068092509,-153.53106896,0.00014609,2]
[356734056,1743068101942,-155.51008316,0.00014609,2]
[356734057,1743068108156,913.086709,7.945e-05,2]
[356734058,1743068111725,-150.0,0.00014609,2]
[356734059,1743068148927,-150.0,0.00014609,2]
[356734060,1743068167788,2393.009618,7.945e-05,2]
[356734061,1743068171306,-150.61478912,0.00014609,2]
[356734062,1743068174318,158.88169,0.0001853,20]
[356734063,1743068174372,158.8817,0.0001978,23]
[356734064,1743068176210,-150.0,0.00014609,2]
[356734065,1743068228366,176.124833,7.945e-05,2]
[356734066,1743068231407,-200.28405876,0.00014609,2]
[356734067,1743068231428,-46.87494124,0.000149,2]
[356734068,1743068245575,-160.08132431,0.0001499,3]
[356734069,1743068348596,1314.247432,7.945e-05,2]
[356734070,1743068371545,-214.86367231,0.000149,2]
[356734071,1743068371568,-114.50732769,0.000149,2]
[356734072,1743068378664,-258.63706407,0.0001499,3]
[356734073,1743068401950,-157.98384103,0.000149,2]
[356734074,1743068405714,-241.312374,0.000149,2]
[356734075,1743068408440,-150.0,0.000149,2]
[356734076,1743068415279,-150.0,0.000149,2]
[356734077,1743068456752,-214.86367231,0.000149,2]
[356734078,1743068456775,-2.78581499,0.000149,2]
[356734079,1743068459431,-151.6906,0.000149,2]
[356734080,1743068467534,1820.456785,7.945e-05,2]
[356734081,1743068471215,-12.33068071,0.000149,2]
[356734082,1743068471236,-145.57704019,0.000149,2]
[356734083,1743068511713,-150.0,0.000149,2]
[356734084,1743068515515,-217.15015615,0.000149,2]
[356734085,1743068528075,737.947778,7.945e-05,2]
[356734088,1743068707970,2993.773611,7.945e-05,2]
[356734089,1743068734800,-150.7605136,0.00013699,2]
[356734090,1743068737083,-1.5894864,0.00013699,2]
[356734091,1743068737104,-152.35,0.00013699,2]
[356734092,1743068737127,-5.19435338,0.00013699,2]
[356734093,1743068743672,-147.15564662,0.00013699,2]
[356734094,1743068743695,-2.84435338,0.00013699,2]
[356734095,1743068762645,-149.50564662,0.00013699,2]
[356734096,1743068762673,-8.47819441,0.00013699,2]
[356734097,1743068767557,4598.306842,7.945e-05,2]
[356734098,1743068769129,-143.87180559,0.00013699,2]
[356734099,1743068769155,-6.12819441,0.0001495,2]
[356734100,1743068775094,-150.0,0.00014899,2]
[356734101,1743068791979,-150.7605136,0.0001455,2]
[356734102,1743068792000,-3.0,0.00014899,2]
[356734103,1743068792029,-101.66364291,0.000149,2]
[356734104,1743068793045,-150.7605136,0.000149,2]
[356734105,1743068796401,-198.9129749,0.00014601,2]
[356734106,1743068828119,2346.80866,7.945e-05,2]
[356734107,1743068887613,1792.439065,7.945e-05,2]
[356734108,1743068948523,887.911389,7.945e-05,2]
[356734119,1743069031988,-300.0,0.000145,5]
[356734120,1743069031998,-700.0,0.000146,5]
[356734121,1743069032007,-937.39762868,0.00014601,2]
[356734122,1743069032017,-6509.88030807,0.00014621,2]
[356734123,1743069032032,-17039.73969193,0.00014621,2]
[356734124,1743069032041,-1100.0,0.000147,5]
[356734125,1743069032050,-1500.0,0.000148,5]
[356734126,1743069032060,-415.02,0.00014892,2]
[356734127,1743069032069,-300.0,0.00014899,2]
[356734128,1743069032078,-1800.0,0.000149,5]
[356734129,1743069032089,-166.8070957,0.000149,2]
[356734130,1743069032098,-158.29,0.00014901,2]
[356734131,1743069032108,-1248.87180559,0.0001495,2]
[356734132,1743069032118,-462.44191272,0.00014973,2]
[356734133,1743069032127,-500.0,0.00014973,2]
[356734134,1743069032136,-157.81,0.0001499,3]
[356734135,1743069032146,-1000.0,0.00014997,2]
[356734136,1743069032156,-16439.15070002,0.00014999,2]
[356734137,1743069032166,-150.0,0.00014999,2]
[356734138,1743069032175,-150.0,0.00014999,2]
[356734139,1743069032185,-150.0,0.00014999,2]
[356734140,1743069032195,-150.0,0.00014999,2]
[356734141,1743069032205,-150.0,0.00014999,2]
[356734142,1743069032214,-150.0,0.00014999,2]
[356734143,1743069032223,-533.0,0.00015,2]
[356734144,1743069032232,-254866.15924148,0.00015,2]
[356734155,1743069037855,-34014.57000382,0.00015,2]
[356734156,1743069037866,-16255.4079033,0.00015,2]
[356734157,1743069037910,-9262.70681193,0.00015,2]
[356734200,1743069040851,-409.33571015,0.00015,2]
[356734201,1743069040863,-4343.53786299,0.00015,2]
[356734322,1743069044781,-71.79811182,0.00015,2]
[356734323,1743069044800,-362.76485203,0.00015,2]
[356734324,1743069044815,-4002.3379599,0.00015,2]
[356734327,1743069045987,-10000.92316512,0.00015,2]
[356734328,1743069046021,-156.21050796,0.00015,2]
[356734329,1743069046042,-7208.42611902,0.00015,2]
[356734330,1743069046206,-45229.06363221,0.00015,2]
[356734331,1743069046218,-416.30793719,0.00015,2]
[356734332,1743069062966,-374449.41246067,0.00032387,30]
[356734333,1743069062991,-401516.0,0.00032387,60]
[356734334,1743069063015,-173.76567716,0.00032387,120]
[356734335,1743069063041,-226.4344581,0.00032387,120]
[356734336,1743069063067,-171.98714826,0.00032387,120]
[356734337,1743069069529,-157.98384103,0.000149,2]
[356734338,1743069069557,-69.16224244,0.00014999,2]
[356734339,1743069071442,-415.1,0.00024712,30]
[356734340,1743069071480,-1500.0,0.00027397,60]
[356734341,1743069071507,-415.1,0.00029191,30]
[356734342,1743069071531,-158.58518855,0.000299,30]
[356734343,1743069071555,-49637.2,0.0003,30]
[356734344,1743069071767,-1720.58183478,0.00031914,30]
[356734345,1743069071800,-1000.0,0.00032356,30]
[356734346,1743069071824,-1000.0,0.00032356,30]
[356734347,1743069071849,-1000.0,0.00032356,30]
[356734348,1743069071873,-1000.0,0.00032356,30]
[356734349,1743069071897,-1000.0,0.00032356,30]
[356734350,1743069071921,-1000.0,0.00032356,30]
[356734351,1743069071946,-1000.0,0.00032356,30]
[356734352,1743069071970,-1000.0,0.00032356,30]
[356734353,1743069071994,-1000.0,0.00032356,30]
[356734354,1743069072017,-500.0,0.00032356,30]
[356734355,1743069072042,-885.7960367,0.00032359,30]
[356734356,1743069072087,-655.65265976,0.00032932,30]
[356734357,1743069072112,-200.0,0.00033,120]
[356734358,1743069072137,-655.65265976,0.00033068,30]
[356734359,1743069072161,-655.65265976,0.00033205,30]
[356734360,1743069072186,-655.65265976,0.00033342,30]
[356734361,1743069072210,-655.65265976,0.00033479,30]
[356734362,1743069072235,-655.65265976,0.00033616,30]
[356734363,1743069072259,-415.1,0.00033669,120]
[356734364,1743069072284,-655.65265976,0.00033726,30]
[356734365,1743069072314,-655.65265976,0.00033863,30]
[356734366,1743069072338,-655.65265976,0.00034,30]
[356734367,1743069072362,-655.65265976,0.00034137,30]
[356734368,1743069072387,-655.65265976,0.00034274,30]
[356734369,1743069072412,-655.65265976,0.00034411,30]
[356734370,1743069072437,-2626.13452019,0.00034737,40]
[356734371,1743069072462,-411.88248,0.00035888,30]
[356734372,1743069072487,-411.88248,0.00036088,30]
[356734373,1743069072512,-3601.41304773,0.00036143,30]
[356734374,1743069072537,-411.88248,0.00036288,30]
[356734375,1743069072562,-411.88248,0.00036488,30]
[356734376,1743069072586,-266.36984893,0.000365,120]
[356734377,1743069072610,-411.88248,0.00036688,30]
[356734378,1743069072635,-411.88248,0.00036888,30]
[356734379,1743069072663,-154.5,0.000369,31]
[356734380,1743069072692,-154.5,0.000369,31]
[356734381,1743069072720,-154.5,0.000369,31]
[356734382,1743069072748,-154.5,0.000369,31]
[356734383,1743069072777,-154.5,0.000369,31]
[356734384,1743069072805,-154.5,0.000369,31]
[356734385,1743069072833,-154.5,0.000369,31]
[356734386,1743069072858,-411.88248,0.00037088,30]
[356734387,1743069072882,-411.88248,0.00037288,30]
[356734388,1743069072906,-411.88248,0.00037488,30]
[356734389,1743069072930,-411.88248,0.00037688,30]
[356734390,1743069072955,-411.88248,0.00037888,30]
[356734391,1743069072980,-226.4344581,0.00038,120]
[356734392,1743069073004,-171.98714826,0.00038,120]
[356734393,1743069073028,-411.88248,0.00038088,30]
[356734394,1743069073053,-206.0,0.0003811,30]
[356734395,1743069073078,-415.1,0.00038147,120]
[356734396,1743069073104,-411.88248,0.00038288,30]
[356734397,1743069073129,-156.31,0.00038356,60]
[356734398,1743069073155,-411.88248,0.00038488,30]
[356734399,1743069073181,-411.88248,0.00038688,30]
[356734400,1743069073208,-609.762,0.0003875,52]
[356734401,1743069073232,-161.37444991,0.00039,120]
[356734402,1743069073262,-1189.33632539,0.00039,120]
[356734403,1743069073286,-259.38258195,0.00039,120]
[356734404,1743069073313,-500.0,0.00039068,60]
[356734405,1743069073338,-900.0,0.00039068,60]
[356734406,1743069073362,-411.88248,0.00039088,30]
[356734407,1743069073387,-411.88248,0.00039288,30]
[356734408,1743069073411,-206.0,0.0003929,30]
[356734409,1743069073435,-411.88248,0.00039488,30]
[356734410,1743069073465,-154.5,0.000396,31]
[356734411,1743069073492,-154.5,0.000396,31]
[356734412,1743069073521,-154.5,0.000396,31]
[356734413,1743069073548,-154.5,0.000396,31]
[356734414,1743069073574,-154.5,0.000396,31]
[356734415,1743069073601,-154.5,0.000396,31]
[356734416,1743069073631,-154.5,0.000396,31]
[356734417,1743069073660,-154.5,0.000396,31]
[356734418,1743069073687,-154.5,0.000396,31]
[356734419,1743069073715,-154.5,0.000396,31]
[356734420,1743069073743,-154.5,0.000396,31]
[356734421,1743069073770,-154.5,0.000396,31]
[356734422,1743069073797,-154.5,0.000396,31]
[356734423,1743069073824,-154.5,0.000396,31]
[356734424,1743069073848,-900.0,0.00039616,60]
[356734425,1743069073871,-411.88248,0.00039688,30]
[356734426,1743069074043,-825.92,0.000398,60]
[356734427,1743069074070,-411.88248,0.00039888,30]
[356734428,1743069074095,-150.0,0.00039982,120]
[356734429,1743069074120,-516.3,0.0004,120]
[356734430,1743069074144,-424.0,0.0004,120]
[356734431,1743069074168,-153.0,0.0004,60]
[356734432,1743069074192,-152.72216476,0.0004,120]
[356734433,1743069074218,-202.77,0.0004,30]
[356734434,1743069074242,-2513.77934708,0.0004,120]
[356734435,1743069074267,-205.61367325,0.0004,30]
[356734436,1743069074296,-800.0,0.0004,120]
[356734437,1743069074320,-226.4344581,0.0004,120]
[356734438,1743069074345,-171.98714826,0.0004,120]
[356734439,1743069074371,-215.89131017,0.0004,120]
[356734440,1743069074397,-411.88248,0.00040088,30]
[356734441,1743069074422,-900.0,0.00040164,60]
[356734442,1743069074446,-500.0,0.00040164,60]
[356734443,1743069074471,-411.88248,0.00040288,30]
[356734444,1743069074496,-206.0,0.0004047,30]
[356734445,1743069074520,-411.88248,0.00040488,30]
[356734446,1743069074545,-411.88248,0.00040688,30]
[356734447,1743069074568,-900.0,0.00040712,60]
[356734448,1743069074593,-411.88248,0.00040888,30]
[356734449,1743069074617,-197.7,0.00041,30]
[356734450,1743069074642,-2000.0,0.00041,60]
[356734451,1743069074667,-11329.84,0.00041,120]
[356734452,1743069074691,-306.67,0.00041,120]
[356734453,1743069074717,-411.88248,0.00041088,30]
[356734454,1743069074741,-572.53622469,0.00041095,30]
[356734455,1743069074766,-500.0,0.00041095,30]
[356734456,1743069074791,-537.40579294,0.00041095,30]
[356734457,1743069074816,-589.03810798,0.00041095,30]
[356734458,1743069074840,-156.31248563,0.00041095,30]
[356734459,1743069074865,-506.64215372,0.00041095,30]
[356734460,1743069074889,-513.15533476,0.00041095,30]
[356734461,1743069074913,-528.68992085,0.00041095,30]
[356734462,1743069074936,-523.2670978,0.00041095,30]
[356734463,1743069074959,-151.22187478,0.00041095,30]
[356734464,1743069074984,-161.6,0.00041095,30]
[356734465,1743069075008,-500.0,0.00041095,30]
[356734466,1743069075033,-500.0,0.00041095,30]
[356734467,1743069075056,-500.0,0.00041095,30]
[356734468,1743069075081,-509.25818507,0.00041095,30]
[356734469,1743069075105,-507.06875989,0.00041095,30]
[356734470,1743069075130,-500.0,0.00041095,30]
[356734471,1743069075154,-500.0,0.00041095,30]
[356734472,1743069075178,-551.57195342,0.00041095,30]
[356734473,1743069075203,-571.8801088,0.00041095,30]
[356734474,1743069075227,-500.0,0.00041095,30]
[356734475,1743069075252,-497.40650471,0.00041095,30]
[356734476,1743069075277,-500.0,0.00041095,30]
[356734477,1743069075306,-500.0,0.00041095,30]
[356734478,1743069075331,-500.0,0.00041095,30]
[356734479,1743069075357,-735.16,0.00041095,120]
[356734480,1743069075384,-500.0,0.00041095,30]
[356734481,1743069075412,-515.484059,0.00041095,30]
[356734482,1743069075437,-500.0,0.00041095,30]
[356734483,1743069075461,-535.00388777,0.00041095,30]
[356734484,1743069075486,-381.35264165,0.00041095,30]
[356734485,1743069075510,-500.0,0.00041095,30]
[356734486,1743069075534,-500.0,0.00041095,30]
[356734487,1743069075559,-522.44474874,0.00041095,30]
[356734488,1743069075583,-500.0,0.00041095,30]
[356734489,1743069075609,-500.0,0.00041095,30]
[356734490,1743069075633,-500.0,0.00041095,30]
[356734491,1743069075658,-631.9401437,0.00041095,30]
[356734492,1743069075683,-500.0,0.00041095,30]
[356734493,1743069075707,-511.68847127,0.00041095,30]
[356734494,1743069075731,-368.7283066,0.00041095,30]
[356734495,1743069075756,-500.0,0.00041095,30]
[356734496,1743069075781,-500.0,0.00041095,30]
[356734497,1743069075805,-500.0,0.00041095,30]
[356734498,1743069075829,-506.69273874,0.00041095,30]
[356734499,1743069075853,-500.0,0.00041095,30]
[356734500,1743069075878,-596.65,0.00041095,30]
[356734501,1743069075903,-500.0,0.00041095,30]
[356734502,1743069075928,-500.0,0.00041095,30]
[356734503,1743069075953,-500.43021643,0.00041095,30]
[356734504,1743069075977,-500.0,0.00041095,30]
[356734505,1743069076000,-500.0,0.00041095,30]
[356734506,1743069076025,-500.0,0.00041095,30]
[356734507,1743069076049,-505.65606419,0.00041095,30]
[356734508,1743069076073,-223.14032807,0.00041095,30]
[356734509,1743069076098,-585.51511436,0.00041095,30]
[356734510,1743069076122,-502.31910389,0.00041095,30]
[356734511,1743069076147,-500.0,0.00041095,30]
[356734512,1743069076172,-419.68554705,0.00041095,30]
[356734513,1743069076196,-515.76474734,0.00041095,30]
[356734514,1743069076220,-502.27631161,0.00041095,30]
[356734515,1743069076245,-527.7467345,0.00041095,30]
[356734516,1743069076269,-500.0,0.00041095,30]
[356734517,1743069076297,-513.65568241,0.00041095,30]
[356734518,1743069076321,-596.76515995,0.00041095,30]